[Event "44th Chess Olympiad Open 2022"]
[Site "Chennai"]
[Date "2022.08.06"]
[Round "8.70"]
[White "Strovsky, Mikhail"]
[Black "Boidiya, Sidi"]
[Result "1-0"]
[WhiteElo "2158"]
[BlackElo "1997"]
[Annotator "NA RC"]
[PlyCount "125"]
[EventDate "2022.??.??"]
[TimeControl "60"]

1. e4 {[%emt 0:00:05]} c5 {[%emt 0:00:03]} 2. Nf3 {[%emt 0:00:08]} Nc6 {
[%emt 0:00:04]} 3. Bb5 {[%emt 0:00:19]} e6 {[%emt 0:00:04]} 4. O-O {[%emt 0:00:
00]} Nge7 {[%emt 0:00:06]} 5. Re1 {[%emt 0:00:34]} a6 {[%emt 0:00:15]} 6. Bf1 {
[%emt 0:01:12]} d5 {[%emt 0:00:39]} 7. exd5 {[%emt 0:01:19]} Nxd5 {[%emt 0:00:
00]} 8. d4 {[%emt 0:02:25]} Be7 {[%emt 0:01:57]} 9. c3 {[%emt 0:19:10]} O-O {
[%emt 0:00:46]} 10. dxc5 {[%emt 0:03:54]} Bxc5 {[%emt 0:00:20]} 11. Nbd2 {
[%emt 0:11:48]} Re8 {[%emt 0:13:11]} 12. Ne4 {[%emt 0:07:23]} Be7 {[%emt 0:00:
00]} 13. Nd4 {[%emt 0:03:54]} Nxd4 {[%emt 0:04:38]} 14. Qxd4 {[%emt 0:00:34]}
Nf6 {[%emt 0:00:28]} 15. Nxf6+ {[%emt 0:01:21]} Bxf6 {[%emt 0:00:07]} 16. Qxd8
{[%emt 0:00:09]} Rxd8 {[%emt 0:00:02]} 17. Be3 {[%emt 0:01:12]} e5 {[%emt 0:00:
00]} 18. Bc4 {[%emt 0:02:10]} Bf5 {[%emt 0:03:04]} 19. Rad1 {[%emt 0:01:17]}
Bc2 {[%emt 0:00:21]} 20. Rxd8+ {[%emt 0:03:47]} Rxd8 {[%emt 0:00:07]} 21. h3 {
[%emt 0:00:58]} Bd3 {[%emt 0:03:12]} 22. Bxd3 {[%emt 0:03:17]} Rxd3 {[%emt 0:
00:00]} 23. Kf1 {[%emt 0:00:17]} g6 {[%emt 0:02:25]} 24. Ke2 {[%emt 0:00:13]}
Rd7 {[%emt 0:00:07]} 25. Rd1 {[%emt 0:00:30]} Rxd1 {[%emt 0:00:45]} 26. Kxd1 {
[%emt 0:00:09]} Kf8 {[%emt 0:00:01]} 27. Ke2 {[%emt 0:00:30]} Ke7 {[%emt 0:00:
00]} 28. Kd3 {[%emt 0:00:11]} Ke6 {[%emt 0:00:15]} 29. Kc4 {[%emt 0:00:23]} Be7
{[%emt 0:00:05]} 30. a4 {[%emt 0:02:16]} f5 {[%emt 0:00:21]} 31. b4 {[%emt 0:
00:00]} f4 {[%emt 0:00:41]} 32. Bc5 {[%emt 0:00:50]} Bd8 {[%emt 0:05:11]} 33.
f3 {[%emt 0:02:20]} Bh4 {[%emt 0:02:51]} 34. Bg1 {[%emt 0:02:25]} Be1 {[%emt 0:
00:00]} 35. b5 {[%emt 0:02:14]} h5 {[%emt 0:00:00]} 36. Kd3 {[%emt 0:01:05]}
axb5 {[%emt 0:02:23]} 37. axb5 {[%emt 0:00:28]} Kf5 {[%emt 0:00:59]} 38. c4 {
[%emt 0:00:12]} Ba5 {[%emt 0:04:02]} 39. c5 {[%emt 0:01:00]} Bc7 {[%emt 0:00:
00]} 40. Bf2 {[%emt 0:01:46]} g5 {[%emt 0:00:10]} 41. Bg1 {[%emt 0:30:45]} g4 {
[%emt 0:30:19]} 42. hxg4+ {[%emt 0:00:50]} hxg4 {[%emt 0:00:07]} 43. Bf2 {
[%emt 0:00:44]} Bd8 {[%emt 0:03:52]} 44. fxg4+ {[%emt 0:01:34]} Kxg4 {[%emt 0:
00:00]} 45. Ke4 {[%emt 0:00:12]} Bc7 {[%emt 0:00:01]} 46. Be1 {[%emt 0:00:39]}
Kg5 {[%emt 0:01:00]} 47. b6 {[%emt 0:02:15]} Bb8 {[%emt 0:01:00]} 48. Bc3 {
[%emt 0:00:38]} Kf6 {[%emt 0:00:10]} 49. Be1 {[%emt 0:01:12]} Kg5 {[%emt 0:00:
00]} 50. Bc3 {[%emt 0:01:07]} Kf6 {[%emt 0:00:09]} 51. Bb2 {[%emt 0:00:25]} Ke6
{[%emt 0:00:23]} 52. Ba1 {[%emt 0:00:48]} Kf6 {[%emt 0:00:15]} 53. Bc3 {
[%emt 0:00:11]} Ke6 {[%emt 0:00:49]} 54. Be1 {[%emt 0:00:10]} Kd7 {[%emt 0:00:
00]} 55. Kd5 {[%emt 0:00:38]} e4 {[%emt 0:00:23]} 56. Kxe4 {[%emt 0:00:22]} Kc6
{[%emt 0:00:01]} 57. Bf2 {[%emt 0:08:46]} Kb5 {[%emt 0:00:20]} 58. Kd5 {
[%emt 0:00:29]} Kb4 {[%emt 0:00:08]} 59. c6 {[%emt 0:00:24]} bxc6+ {[%emt 0:00:
00]} 60. Kxc6 {[%emt 0:00:27]} Be5 {[%emt 0:00:43]} 61. Bc5+ {[%emt 0:00:29]}
Kc4 {[%emt 0:00:03]} 62. Bd6 {[%emt 0:00:17]} Bd4 {[%emt 0:00:06]} 63. b7 {
[%emt 0:00:19]} 1-0

[Event "44th Chess Olympiad Open 2022"]
[Site "Chennai"]
[Date "2022.08.06"]
[Round "8.70"]
[White "Mohamed Abderrahim, Taleb Mohamed"]
[Black "Tchouka, Yakini"]
[Result "1-0"]
[WhiteElo "2084"]
[BlackElo "1934"]
[Annotator "NA RC"]
[PlyCount "69"]
[EventDate "2022.??.??"]
[TimeControl "60"]

1. e4 {[%emt 0:00:07]} c5 {[%emt 0:00:11]} 2. c3 {[%emt 0:00:36]} Nf6 {[%emt 0:
00:00]} 3. e5 {[%emt 0:00:23]} Nd5 {[%emt 0:00:08]} 4. d4 {[%emt 0:00:47]} cxd4
{[%emt 0:00:06]} 5. Nf3 {[%emt 0:01:47]} Nc6 {[%emt 0:00:27]} 6. Bc4 {[%emt 0:
00:00]} Nb6 {[%emt 0:01:42]} 7. Bb3 {[%emt 0:00:53]} d5 {[%emt 0:00:25]} 8.
exd6 {[%emt 0:01:51]} Qxd6 {[%emt 0:00:13]} 9. O-O {[%emt 0:01:50]} d3 {
[%emt 0:03:38]} 10. Na3 {[%emt 0:13:01]} Bf5 {[%emt 0:22:37]} 11. Nb5 {[%emt 0:
00:00]} Qd7 {[%emt 0:04:23]} 12. Bf4 {[%emt 0:07:48]} Rc8 {[%emt 0:00:14]} 13.
Nxa7 {[%emt 0:05:41]} e6 {[%emt 0:13:33]} 14. Nxc8 {[%emt 0:02:34]} Qxc8 {
[%emt 0:01:47]} 15. Nh4 {[%emt 0:08:53]} Be4 {[%emt 0:15:51]} 16. Re1 {[%emt 0:
00:00]} Bd5 {[%emt 0:08:05]} 17. Qxd3 {[%emt 0:03:13]} Be7 {[%emt 0:02:58]} 18.
Nf5 {[%emt 0:06:26]} O-O {[%emt 0:08:47]} 19. Nxe7+ {[%emt 0:05:42]} Nxe7 {
[%emt 0:00:16]} 20. Bd6 {[%emt 0:06:02]} Re8 {[%emt 0:00:23]} 21. Bxe7 {
[%emt 0:00:49]} Rxe7 {[%emt 0:00:13]} 22. c4 {[%emt 0:01:42]} Bc6 {[%emt 0:00:
00]} 23. Rad1 {[%emt 0:01:37]} Rd7 {[%emt 0:02:09]} 24. Qe3 {[%emt 0:01:17]}
Qc7 {[%emt 0:03:04]} 25. h3 {[%emt 0:04:11]} g6 {[%emt 0:00:29]} 26. Rxd7 {
[%emt 0:00:35]} Nxd7 {[%emt 0:00:23]} 27. Bc2 {[%emt 0:01:01]} Nf6 {[%emt 0:00:
00]} 28. Qe5 {[%emt 0:00:23]} Qe7 {[%emt 0:00:54]} 29. Rd1 {[%emt 0:01:08]} Nd7
{[%emt 0:00:26]} 30. Qe3 {[%emt 0:01:56]} Qb4 {[%emt 0:00:34]} 31. b3 {[%emt 0:
00:00]} Qa3 {[%emt 0:05:00]} 32. Be4 {[%emt 0:00:25]} Bxe4 {[%emt 0:02:14]} 33.
Qxe4 {[%emt 0:00:59]} Nc5 {[%emt 0:00:05]} 34. Qe5 {[%emt 0:00:29]} Qa5 {
[%emt 0:00:59]} 35. b4 {[%emt 0:00:36]} 1-0

[Event "44th Chess Olympiad Open 2022"]
[Site "Chennai"]
[Date "2022.08.06"]
[Round "8.70"]
[White "Cheikhna, Mohamed Lemine"]
[Black "Egbe, Kossi Thierry"]
[Result "0-1"]
[WhiteElo "1899"]
[BlackElo "1703"]
[Annotator "NA RC"]
[PlyCount "110"]
[EventDate "2022.??.??"]
[TimeControl "60"]

1. Nf3 {[%emt 0:00:19]} d5 {[%emt 0:00:39]} 2. d4 {[%emt 0:01:06]} Bf5 {
[%emt 0:00:56]} 3. e3 {[%emt 0:03:26]} Nf6 {[%emt 0:03:35]} 4. Bd3 {[%emt 0:00:
00]} Bg4 {[%emt 0:02:53]} 5. h3 {[%emt 0:02:01]} Bh5 {[%emt 0:00:30]} 6. O-O {
[%emt 0:01:30]} e6 {[%emt 0:00:47]} 7. Nbd2 {[%emt 0:01:44]} c5 {[%emt 0:02:50]
} 8. c3 {[%emt 0:01:42]} Nbd7 {[%emt 0:01:37]} 9. Re1 {[%emt 0:02:43]} Be7 {
[%emt 0:07:45]} 10. e4 {[%emt 0:04:06]} dxe4 {[%emt 0:03:18]} 11. Nxe4 {
[%emt 0:00:13]} O-O {[%emt 0:00:44]} 12. dxc5 {[%emt 0:10:41]} Nxe4 {[%emt 0:
00:00]} 13. Bxe4 {[%emt 0:01:50]} Nxc5 {[%emt 0:16:37]} 14. Bc2 {[%emt 0:01:41]
} Qxd1 {[%emt 0:01:19]} 15. Rxd1 {[%emt 0:00:11]} Rfd8 {[%emt 0:01:22]} 16. Be3
{[%emt 0:00:34]} Bg6 {[%emt 0:03:57]} 17. Bxg6 {[%emt 0:02:41]} hxg6 {[%emt 0:
00:00]} 18. Bxc5 {[%emt 0:13:57]} Bxc5 {[%emt 0:00:10]} 19. Ne5 {[%emt 0:03:53]
} Bd6 {[%emt 0:02:32]} 20. Nc4 {[%emt 0:02:51]} Be7 {[%emt 0:01:38]} 21. Na5 {
[%emt 0:07:13]} Rab8 {[%emt 0:05:45]} 22. Kf1 {[%emt 0:01:57]} Kf8 {[%emt 0:00:
00]} 23. Ke2 {[%emt 0:01:16]} Bd6 {[%emt 0:01:31]} 24. f3 {[%emt 0:08:55]} Ke7
{[%emt 0:00:18]} 25. Nb3 {[%emt 0:00:41]} Be5 {[%emt 0:02:59]} 26. Nc5 {
[%emt 0:02:25]} Bd6 {[%emt 0:00:28]} 27. Nb3 {[%emt 0:02:41]} Bc7 {[%emt 0:00:
00]} 28. Nc5 {[%emt 0:07:08]} Bd6 {[%emt 0:00:29]} 29. Ne4 {[%emt 0:01:00]} Bc7
{[%emt 0:00:46]} 30. Nf2 {[%emt 0:01:21]} Bf4 {[%emt 0:01:09]} 31. Rxd8 {
[%emt 0:00:30]} Rxd8 {[%emt 0:00:07]} 32. Rd1 {[%emt 0:00:10]} Rxd1 {[%emt 0:
00:00]} 33. Nxd1 {[%emt 0:00:10]} Kd6 {[%emt 0:00:57]} 34. Kd3 {[%emt 0:00:08]}
Ke5 {[%emt 0:01:38]} 35. Ne3 {[%emt 0:01:04]} Bxe3 {[%emt 0:00:22]} 36. Kxe3 {
[%emt 0:00:07]} Kd5 {[%emt 0:00:43]} 37. b3 {[%emt 0:08:13]} a5 38. a3 {
[%emt 0:07:22]} b5 {[%emt 0:01:21]} 39. Kd3 {[%emt 0:00:00]} a4 {[%emt 0:01:14]
} 40. bxa4 {[%emt 0:00:00]} bxa4 {[%emt 0:00:08]} 41. f4 {[%emt 0:00:57]} f6 {
[%emt 0:31:10]} 42. g3 {[%emt 0:18:54]} e5 {[%emt 0:00:00]} 43. c4+ {[%emt 0:
00:00]} Kc5 {[%emt 0:00:00]} 44. h4 {[%emt 0:01:09]} e4+ {[%emt 0:00:00]} 45.
Kxe4 {[%emt 0:00:09]} Kxc4 {[%emt 0:00:00]} 46. f5 {[%emt 0:05:52]} g5 {
[%emt 0:00:00]} 47. h5 {[%emt 0:00:53]} g4 {[%emt 0:00:00]} 48. Kf4 {[%emt 0:
00:00]} Kb3 {[%emt 0:00:00]} 49. Kxg4 {[%emt 0:00:04]} Kxa3 {[%emt 0:00:00]}
50. Kf3 {[%emt 0:00:11]} Kb4 {[%emt 0:00:00]} 51. g4 {[%emt 0:00:02]} a3 {
[%emt 0:00:00]} 52. g5 {[%emt 0:00:08]} a2 {[%emt 0:00:00]} 53. h6 {[%emt 0:00:
00]} gxh6 {[%emt 0:00:00]} 54. gxh6 {[%emt 0:01:10]} a1=Q {[%emt 0:00:15]} 55.
h7 {[%emt 0:01:19]} Qh1+ {[%emt 0:00:00]} 0-1

[Event "44th Chess Olympiad Open 2022"]
[Site "Chennai"]
[Date "2022.08.06"]
[Round "8.70"]
[White "Amega-Dzaka, Komi Nukunu"]
[Black "Hassan Sidi Mohamed Cheikh"]
[Result "0-1"]
[WhiteElo "1639"]
[BlackElo "1825"]
[Annotator "NA RC"]
[PlyCount "97"]
[EventDate "2022.??.??"]
[TimeControl "60"]

1. d4 {[%emt 0:00:19]} Nf6 {[%emt 0:00:09]} 2. Nf3 {[%emt 0:00:10]} d5 {
[%emt 0:00:06]} 3. Bf4 {[%emt 0:00:15]} c5 {[%emt 0:00:40]} 4. e3 {[%emt 0:00:
00]} Nc6 {[%emt 0:00:11]} 5. c3 {[%emt 0:00:20]} Qb6 {[%emt 0:00:12]} 6. Qb3 {
[%emt 0:01:21]} c4 {[%emt 0:00:08]} 7. Qxb6 {[%emt 0:01:13]} axb6 {[%emt 0:00:
00]} 8. Be2 {[%emt 0:00:29]} Bf5 {[%emt 0:01:40]} 9. O-O {[%emt 0:00:22]} h6 {
[%emt 0:01:56]} 10. Nbd2 {[%emt 0:10:46]} b5 {[%emt 0:00:58]} 11. a3 {[%emt 0:
00:00]} Nd7 {[%emt 0:00:27]} 12. Rfe1 {[%emt 0:03:37]} Nb6 {[%emt 0:00:15]} 13.
Bd1 {[%emt 0:01:01]} b4 {[%emt 0:00:17]} 14. cxb4 {[%emt 0:08:06]} Nxb4 {
[%emt 0:00:23]} 15. Ba4+ {[%emt 0:02:55]} Rxa4 {[%emt 0:12:37]} 16. axb4 {
[%emt 0:00:02]} Rxb4 {[%emt 0:00:48]} 17. Ra2 {[%emt 0:05:41]} g5 {[%emt 0:00:
00]} 18. Bc7 {[%emt 0:05:07]} Bg7 {[%emt 0:00:17]} 19. Bxb6 {[%emt 0:15:13]}
Rxb6 {[%emt 0:00:09]} 20. e4 {[%emt 0:01:36]} Be6 {[%emt 0:05:01]} 21. Ne5 {
[%emt 0:03:43]} Bxe5 {[%emt 0:01:10]} 22. dxe5 {[%emt 0:00:03]} O-O {[%emt 0:
00:00]} 23. exd5 {[%emt 0:01:14]} Bxd5 {[%emt 0:00:07]} 24. Ra4 {[%emt 0:02:33]
} Rc8 {[%emt 0:01:23]} 25. Rb1 {[%emt 0:06:26]} c3 {[%emt 0:00:17]} 26. bxc3 {
[%emt 0:01:33]} Rxb1+ {[%emt 0:01:16]} 27. Nxb1 {[%emt 0:00:20]} Be6 {[%emt 0:
00:00]} 28. Rb4 {[%emt 0:02:22]} Rd8 {[%emt 0:00:15]} 29. Rd4 {[%emt 0:04:50]}
Ra8 {[%emt 0:03:20]} 30. c4 {[%emt 0:08:58]} Ra1 {[%emt 0:00:23]} 31. Rd1 {
[%emt 0:00:06]} Bxc4 {[%emt 0:00:55]} 32. Nc3 {[%emt 0:00:17]} Rxd1+ {[%emt 0:
00:00]} 33. Nxd1 {[%emt 0:00:03]} Kg7 {[%emt 0:02:00]} 34. g4 {[%emt 0:01:07]}
Be2 {[%emt 0:05:38]} 35. Ne3 {[%emt 0:00:16]} b5 {[%emt 0:00:12]} 36. Nf5+ {
[%emt 0:00:37]} Kf8 {[%emt 0:00:30]} 37. Nd4 {[%emt 0:00:11]} Bc4 {[%emt 0:00:
00]} 38. Nc2 {[%emt 0:00:35]} Ke8 {[%emt 0:00:31]} 39. f4 {[%emt 0:01:17]} Kd7
{[%emt 0:01:26]} 40. Kf2 {[%emt 0:00:53]} Kc6 {[%emt 0:00:29]} 41. Ke3 {
[%emt 0:33:04]} Kc5 {[%emt 0:30:31]} 42. fxg5 {[%emt 0:00:00]} hxg5 {[%emt 0:
00:00]} 43. Nd4 {[%emt 0:00:00]} b4 {[%emt 0:04:31]} 44. Nf3 {[%emt 0:00:00]}
b3 {[%emt 0:00:00]} 45. Nd2 {[%emt 0:00:00]} b2 {[%emt 0:00:00]} 46. Ke4 {
[%emt 0:00:00]} e6 {[%emt 0:00:00]} 47. Nb1 {[%emt 0:00:00]} Ba2 {[%emt 0:00:
00]} 48. Nd2 {[%emt 0:00:00]} b1=Q+ {[%emt 0:00:00]} 49. Nxb1 {[%emt 0:00:49]}
0-1

[Event "44th Chess Olympiad Open 2022"]
[Site "Chennai"]
[Date "2022.08.06"]
[Round "8.71"]
[White "Ayyad, Husain"]
[Black "Herrera, Adrian"]
[Result "1-0"]
[WhiteElo "2209"]
[BlackElo "1563"]
[Annotator "NA RC"]
[PlyCount "64"]
[EventDate "2022.??.??"]
[TimeControl "60"]

1. e4 {[%emt 0:00:23]} e5 {[%emt 0:00:13]} 2. Nf3 {[%emt 0:00:04]} Nc6 {
[%emt 0:00:32]} 3. d4 {[%emt 0:00:02]} exd4 {[%emt 0:00:40]} 4. Bc4 {[%emt 0:
00:00]} Nf6 {[%emt 0:00:47]} 5. e5 {[%emt 0:00:04]} d5 {[%emt 0:00:42]} 6. Bb5
{[%emt 0:00:05]} Ne4 {[%emt 0:00:37]} 7. Nxd4 {[%emt 0:00:05]} Bc5 {[%emt 0:00:
00]} 8. O-O {[%emt 0:00:06]} Bd7 {[%emt 0:00:47]} 9. Bxc6 {[%emt 0:00:06]} bxc6
{[%emt 0:00:08]} 10. Be3 {[%emt 0:00:05]} Bb6 {[%emt 0:00:35]} 11. f3 {[%emt 0:
00:00]} Ng5 {[%emt 0:01:22]} 12. f4 {[%emt 0:01:05]} Ne4 {[%emt 0:01:16]} 13.
Nd2 {[%emt 0:00:31]} c5 {[%emt 0:01:48]} 14. N4f3 {[%emt 0:00:18]} Nxd2 {
[%emt 0:02:01]} 15. Qxd2 {[%emt 0:00:01]} d4 {[%emt 0:03:02]} 16. Bf2 {[%emt 0:
00:00]} Bb5 {[%emt 0:01:54]} 17. Rfe1 {[%emt 0:00:26]} Qd7 {[%emt 0:01:50]} 18.
e6 {[%emt 0:00:12]} fxe6 {[%emt 0:00:04]} 19. Ne5 {[%emt 0:00:02]} Qd5 {
[%emt 0:00:49]} 20. a4 {[%emt 0:00:11]} Bc6 {[%emt 0:00:06]} 21. Nxc6 {[%emt 0:
00:00]} a5 {[%emt 0:00:54]} 22. Rxe6+ {[%emt 0:00:32]} Kd7 {[%emt 0:10:02]} 23.
Rae1 {[%emt 0:00:52]} Rae8 {[%emt 0:03:10]} 24. Rxe8 {[%emt 0:00:33]} Rxe8 {
[%emt 0:00:07]} 25. Rxe8 {[%emt 0:00:02]} Kxe8 {[%emt 0:00:10]} 26. Qe2+ {
[%emt 0:00:05]} Kd7 {[%emt 0:04:52]} 27. Ne5+ {[%emt 0:00:05]} Kc8 {[%emt 0:00:
00]} 28. Nc4 {[%emt 0:00:07]} h5 {[%emt 0:03:07]} 29. b3 {[%emt 0:00:06]} Qf5 {
[%emt 0:02:05]} 30. Be1 {[%emt 0:01:18]} g6 {[%emt 0:13:52]} 31. Bxa5 {[%emt 0:
00:00]} Bxa5 {[%emt 0:01:06]} 32. Qe8+ {[%emt 0:00:10]} Kb7 {[%emt 0:02:45]}
1-0

[Event "44th Chess Olympiad Open 2022"]
[Site "Chennai"]
[Date "2022.08.06"]
[Round "8.71"]
[White "Volpinari, Danilo"]
[Black "Ayyad, Maher"]
[Result "0-1"]
[WhiteElo "1955"]
[BlackElo "2101"]
[Annotator "NA RC"]
[PlyCount "58"]
[EventDate "2022.??.??"]
[TimeControl "60"]

1. d4 {[%emt 0:00:08]} d5 {[%emt 0:00:38]} 2. Bf4 {[%emt 0:00:15]} Nf6 {
[%emt 0:00:11]} 3. Nc3 {[%emt 0:00:42]} g6 {[%emt 0:00:30]} 4. e3 {[%emt 0:00:
00]} Bg7 {[%emt 0:00:06]} 5. h4 {[%emt 0:01:54]} c5 {[%emt 0:00:18]} 6. Be2 {
[%emt 0:03:09]} Qa5 {[%emt 0:00:15]} 7. Qd2 {[%emt 0:06:02]} h5 {[%emt 0:02:50]
} 8. Nf3 {[%emt 0:02:47]} Bf5 {[%emt 0:02:01]} 9. O-O {[%emt 0:03:06]} Nc6 {
[%emt 0:01:03]} 10. Ne5 {[%emt 0:07:53]} O-O {[%emt 0:01:13]} 11. Rfd1 {
[%emt 0:05:05]} Rfd8 {[%emt 0:03:13]} 12. a3 {[%emt 0:04:21]} Rac8 {[%emt 0:00:
00]} 13. Nxc6 {[%emt 0:13:05]} Rxc6 {[%emt 0:07:17]} 14. Bd3 {[%emt 0:13:43]}
cxd4 {[%emt 0:01:14]} 15. exd4 {[%emt 0:02:10]} Bxd3 {[%emt 0:00:34]} 16. Qxd3
{[%emt 0:00:33]} Rdc8 {[%emt 0:00:54]} 17. Bd2 {[%emt 0:14:14]} Qd8 {[%emt 0:
00:00]} 18. Re1 {[%emt 0:01:19]} Ng4 {[%emt 0:01:04]} 19. f3 {[%emt 0:03:47]}
Nh6 {[%emt 0:00:37]} 20. Bg5 {[%emt 0:02:11]} Nf5 {[%emt 0:00:26]} 21. g4 {
[%emt 0:06:05]} Bxd4+ {[%emt 0:01:10]} 22. Kh1 {[%emt 0:03:57]} Ng3+ {[%emt 0:
00:00]} 23. Kg2 {[%emt 0:00:12]} Bxc3 {[%emt 0:00:23]} 24. Rxe7 {[%emt 0:01:00]
} Qd6 {[%emt 0:01:17]} 25. bxc3 {[%emt 0:02:10]} Rxc3 {[%emt 0:00:33]} 26. Re8+
{[%emt 0:00:59]} Rxe8 {[%emt 0:00:07]} 27. Qxc3 {[%emt 0:00:08]} Re2+ {[%emt 0:
00:00]} 28. Kg1 {[%emt 0:01:04]} Qb6+ {[%emt 0:00:10]} 29. Be3 {[%emt 0:01:05]}
Rxe3 {[%emt 0:00:10]} 0-1

[Event "44th Chess Olympiad Open 2022"]
[Site "Chennai"]
[Date "2022.08.06"]
[Round "8.71"]
[White "Righi, Ezio"]
[Black "Al-Burshaid, Ebrahim"]
[Result "1-0"]
[WhiteElo "1912"]
[BlackElo "1702"]
[Annotator "NA RC"]
[PlyCount "77"]
[EventDate "2022.??.??"]
[TimeControl "60"]

1. e4 {[%emt 0:00:05]} e5 {[%emt 0:00:33]} 2. Nf3 {[%emt 0:00:13]} Nc6 {
[%emt 0:00:07]} 3. Bb5 {[%emt 0:00:24]} a6 {[%emt 0:00:14]} 4. Bxc6 {[%emt 0:
00:00]} dxc6 {[%emt 0:00:07]} 5. O-O {[%emt 0:00:13]} Bg4 {[%emt 0:00:25]} 6.
h3 {[%emt 0:00:23]} h5 {[%emt 0:00:40]} 7. d3 {[%emt 0:00:27]} Qf6 {[%emt 0:00:
00]} 8. Nbd2 {[%emt 0:00:18]} Ne7 {[%emt 0:00:35]} 9. Nc4 {[%emt 0:00:18]} Bxf3
{[%emt 0:01:17]} 10. Qxf3 {[%emt 0:00:13]} Qxf3 {[%emt 0:00:20]} 11. gxf3 {
[%emt 0:00:11]} Ng6 {[%emt 0:01:52]} 12. Rd1 {[%emt 0:03:29]} O-O-O {[%emt 0:
00:00]} 13. Kf1 {[%emt 0:01:10]} f6 {[%emt 0:01:05]} 14. Ke2 {[%emt 0:00:57]}
c5 {[%emt 0:04:39]} 15. Be3 {[%emt 0:03:00]} b6 {[%emt 0:04:49]} 16. c3 {
[%emt 0:03:07]} b5 {[%emt 0:09:30]} 17. Na5 {[%emt 0:01:07]} Rd7 {[%emt 0:00:
00]} 18. Rg1 {[%emt 0:02:05]} Nh4 {[%emt 0:05:41]} 19. Nb3 {[%emt 0:01:50]} g5
{[%emt 0:04:25]} 20. Nxc5 {[%emt 0:01:42]} Bxc5 {[%emt 0:00:42]} 21. Bxc5 {
[%emt 0:00:06]} Rhd8 {[%emt 0:03:32]} 22. Rad1 {[%emt 0:01:23]} Ng6 {[%emt 0:
00:00]} 23. Be3 {[%emt 0:00:21]} h4 {[%emt 0:00:58]} 24. d4 {[%emt 0:02:00]} c6
{[%emt 0:16:49]} 25. b4 {[%emt 0:16:53]} Re8 {[%emt 0:08:51]} 26. Rd2 {[%emt 0:
00:00]} Kc7 {[%emt 0:02:01]} 27. Ra1 {[%emt 0:02:25]} Ra8 {[%emt 0:10:37]} 28.
a4 {[%emt 0:02:00]} Kb7 {[%emt 0:03:36]} 29. Rda2 {[%emt 0:01:27]} bxa4 {
[%emt 0:05:04]} 30. Rxa4 {[%emt 0:00:20]} Nf4+ {[%emt 0:00:24]} 31. Bxf4 {
[%emt 0:00:35]} exf4 {[%emt 0:00:18]} 32. Ra5 {[%emt 0:01:55]} Re7 {[%emt 0:00:
00]} 33. Rf5 {[%emt 0:02:19]} Re6 {[%emt 0:01:30]} 34. Kd3 {[%emt 0:00:48]} Rd8
{[%emt 0:00:18]} 35. Raa5 {[%emt 0:00:55]} Kb6 {[%emt 0:00:43]} 36. e5 {
[%emt 0:02:08]} fxe5 {[%emt 0:00:48]} 37. Raxe5 {[%emt 0:00:11]} Rxe5 {[%emt 0:
00:00]} 38. Rxe5 {[%emt 0:00:06]} Rd5 {[%emt 0:00:38]} 39. Ke4 {[%emt 0:00:26]}
1-0

[Event "44th Chess Olympiad Open 2022"]
[Site "Chennai"]
[Date "2022.08.06"]
[Round "8.71"]
[White "Shaker, Musab"]
[Black "Berardi, Giancarlo"]
[Result "1-0"]
[WhiteElo "1705"]
[BlackElo "1757"]
[Annotator "NA RC"]
[PlyCount "45"]
[EventDate "2022.??.??"]
[TimeControl "60"]

1. d4 {[%emt 0:00:03]} d5 {[%emt 0:00:14]} 2. Nf3 {[%emt 0:00:14]} Nf6 {
[%emt 0:00:20]} 3. Bf4 {[%emt 0:00:16]} c5 {[%emt 0:01:00]} 4. e3 {[%emt 0:00:
00]} Bf5 {[%emt 0:03:55]} 5. c3 {[%emt 0:03:50]} c4 {[%emt 0:11:44]} 6. Nbd2 {
[%emt 0:03:41]} Nc6 {[%emt 0:02:54]} 7. Be2 {[%emt 0:05:08]} e6 {[%emt 0:02:50]
} 8. Nh4 {[%emt 0:09:29]} Bg6 {[%emt 0:02:30]} 9. Nxg6 {[%emt 0:03:38]} hxg6 {
[%emt 0:00:29]} 10. e4 {[%emt 0:13:07]} Nh5 {[%emt 0:02:26]} 11. Be3 {[%emt 0:
00:00]} Nf6 {[%emt 0:08:22]} 12. O-O {[%emt 0:05:35]} Nxe4 {[%emt 0:05:54]} 13.
Nxe4 {[%emt 0:03:46]} Qh4 {[%emt 0:00:36]} 14. h3 {[%emt 0:06:38]} Qxe4 {
[%emt 0:01:38]} 15. b3 {[%emt 0:01:35]} b5 {[%emt 0:07:20]} 16. a4 {[%emt 0:00:
00]} Na5 {[%emt 0:02:28]} 17. axb5 {[%emt 0:07:14]} Nxb3 {[%emt 0:01:15]} 18.
Ra6 {[%emt 0:01:52]} Qh4 {[%emt 0:00:27]} 19. b6 {[%emt 0:02:23]} Qe7 {[%emt 0:
00:00]} 20. Qc2 {[%emt 0:07:18]} Kd8 {[%emt 0:24:36]} 21. Qa2 {[%emt 0:02:26]}
Kc8 {[%emt 0:00:48]} 22. Rxa7 {[%emt 0:01:10]} Rxa7 {[%emt 0:00:20]} 23. bxa7 {
[%emt 0:00:25]} 1-0

[Event "44th Chess Olympiad Open 2022"]
[Site "Chennai"]
[Date "2022.08.06"]
[Round "8.72"]
[White "Hsu, Hsuan-Ming"]
[Black "Dlamini Simphiwe"]
[Result "1-0"]
[WhiteElo "1900"]
[BlackElo "1569"]
[Annotator "NA RC"]
[PlyCount "83"]
[EventDate "2022.??.??"]
[TimeControl "60"]

1. e4 {[%emt 0:00:04]} c6 {[%emt 0:00:03]} 2. Ne2 {[%emt 0:01:05]} d5 {[%emt 0:
00:00]} 3. e5 {[%emt 0:00:02]} Bf5 {[%emt 0:01:35]} 4. Ng3 {[%emt 0:00:20]} Bg6
{[%emt 0:00:16]} 5. h4 {[%emt 0:00:07]} h6 {[%emt 0:01:11]} 6. h5 {[%emt 0:00:
00]} Bh7 {[%emt 0:00:06]} 7. e6 {[%emt 0:00:03]} Qd6 {[%emt 0:00:30]} 8. exf7+
{[%emt 0:03:46]} Kxf7 {[%emt 0:00:13]} 9. d4 {[%emt 0:03:44]} Nd7 {[%emt 0:00:
00]} 10. Bd3 {[%emt 0:01:30]} Bxd3 {[%emt 0:03:15]} 11. Qxd3 {[%emt 0:00:15]}
e5 {[%emt 0:03:36]} 12. O-O {[%emt 0:10:56]} e4 {[%emt 0:05:56]} 13. Qb3 {
[%emt 0:00:12]} Qb4 {[%emt 0:00:44]} 14. f3 {[%emt 0:04:22]} Ngf6 {[%emt 0:00:
00]} 15. Qxb4 {[%emt 0:19:50]} Bxb4 {[%emt 0:00:13]} 16. fxe4 {[%emt 0:00:08]}
dxe4 {[%emt 0:00:31]} 17. c3 {[%emt 0:01:22]} Bd6 {[%emt 0:10:40]} 18. Nxe4 {
[%emt 0:01:59]} Bc7 {[%emt 0:00:50]} 19. Bf4 {[%emt 0:06:05]} Nxe4 {[%emt 0:00:
00]} 20. Bxc7+ {[%emt 0:00:14]} Ndf6 {[%emt 0:03:21]} 21. Na3 {[%emt 0:03:36]}
Rhe8 {[%emt 0:04:58]} 22. Be5 {[%emt 0:01:34]} Re6 {[%emt 0:05:47]} 23. Rae1 {
[%emt 0:21:08]} Kg8 {[%emt 0:11:58]} 24. Bxf6 {[%emt 0:03:14]} gxf6 {[%emt 0:
00:00]} 25. g4 {[%emt 0:01:37]} Rae8 {[%emt 0:00:33]} 26. Kg2 {[%emt 0:02:41]}
Kf7 {[%emt 0:00:08]} 27. Nc4 {[%emt 0:02:56]} Ng5 {[%emt 0:07:21]} 28. Rxe6 {
[%emt 0:07:33]} Rxe6 {[%emt 0:00:02]} 29. Ne5+ {[%emt 0:02:04]} Ke7 {[%emt 0:
00:00]} 30. Nd3 {[%emt 0:00:59]} Re4 {[%emt 0:02:05]} 31. Re1 {[%emt 0:00:19]}
f5 {[%emt 0:04:48]} 32. gxf5 {[%emt 0:01:25]} Rxe1 {[%emt 0:00:37]} 33. Nxe1 {
[%emt 0:00:11]} Kf6 {[%emt 0:00:01]} 34. Kg3 {[%emt 0:01:11]} Kxf5 {[%emt 0:00:
00]} 35. Nd3 {[%emt 0:00:19]} Ne6 {[%emt 0:04:24]} 36. Kh4 {[%emt 0:00:27]} a6
{[%emt 0:00:50]} 37. Ne5 {[%emt 0:00:30]} Kf6 {[%emt 0:03:02]} 38. Kg4 {
[%emt 0:00:12]} Nd8 {[%emt 0:02:30]} 39. Nd7+ {[%emt 0:00:26]} Ke7 {[%emt 0:00:
00]} 40. Nc5 {[%emt 0:00:06]} Kf6 {[%emt 0:01:03]} 41. b4 {[%emt 0:30:50]} b6 {
[%emt 0:04:56]} 42. Nd7+ {[%emt 0:00:00]} 1-0